Cogmind - Beta 14 @@@ ROGUE MODE // 2024.10.24 @ 01:03:02 Player: kikul Result: Destroyed by G-47 Trooper with Particle Gun Performance ------------- Evolutions (0) 0 Regions Visited (1) 200 Robots Destroyed (9) 45 Value Destroyed (214) 214 Prototype IDs (0) 0 Alien Tech Used (0) 0 Bonus (0) 0 TOTAL SCORE: 459 Bonus ------- None Cogmind --------- Core Integrity 0/250 Matter 160/300 Energy 25/250 System Corruption 1% Temperature Danger (493) Movement Core (250) Ox4 Location -10/Materials Parts ------- > --- POWER (1) -------- Ion Engine > --- PROPULSION (2) --- (None) > --- UTILITY (2) ------ Small Storage Unit Seismic Detector > --- WEAPON (2) ------- Medium Laser > --- INVENTORY (8) ---- Light Treads Light Treads Heat Sink Sensor Array Signal Interpreter Improved Terrain Scanner Peak State ------------ > --- POWER ------------ Ion Engine > --- PROPULSION ------- Aluminum Leg Aluminum Leg > --- UTILITY ---------- Small Storage Unit Seismic Detector > --- WEAPON ----------- Medium Laser Medium Laser > --- INVENTORY -------- Ion Engine Light Treads Light Treads Heat Sink Sensor Array Signal Interpreter Improved Terrain Scanner EM Pulse Gun [Rating: 8] Favorites ----------- Power Ion Engine Engine Ion Engine Propulsion Aluminum Leg Leg Aluminum Leg Utility Small Storage Unit Device Seismic Detector Storage Small Storage Unit Weapon Medium Laser Energy Gun Medium Laser Build | -11 -10 ------- Run | Yrd Mat Slots Evolved . | . . Power . | . . Propulsion . | . . Utility . | . . Weapon . | . . Parts Attached 12 | 6 6 Power 3 | 1 2 Engine 3 | 1 2 Core . | . . Reactor . | . . Propulsion 3 | 2 1 Treads . | . . Leg 3 | 2 1 Wheel . | . . Hover . | . . Flight . | . . Utility 2 | 1 1 Device 1 | . 1 Storage 1 | 1 . Processor . | . . Hackware . | . . Protection . | . . Artifact . | . . Weapon 4 | 2 2 Energy Gun 4 | 2 2 Energy Cannon . | . . Ballistic Gun . | . . Ballistic Cannon . | . . Launcher . | . . Special Weapon . | . . Impact Weapon . | . . Slashing Weapon . | . . Piercing Weapon . | . . Special Melee Weapon . | . . Unidentified Prototypes . | . . Parts Lost 6 | . 6 Power 2 | . 2 Propulsion 2 | . 2 Utility . | . . Weapon 2 | . 2 Highest Loss Streak 5 | . 5 To Critical Strikes . | . . Average Slot Usage (%) 85 | . 85 Engine 2 | . 2 Leg 27 | . 27 Device 12 | . 12 Storage 14 | . 14 Energy Gun 27 | . 27 Peak Build Rating 8 | 7 8 Average Rating 6 | 3 6 On Entrance 3 | . 7 Naked Turns . | . . Heaviest Build 15 | 14 15 Greatest Support 20 | 20 20 Greatest Overweight (x) . | . . Average Overweight (x) . | . . Largest Inventory Capacity 8 | 8 8 Average Capacity 7 | 6 8 Most Carried 8 | 8 8 Average Carried 7 | 4 7 Final Capacity 8 | 8 8 Final Carried 8 | 8 6 Class Distribution -------------------- 100% | Mutant Dominant Class ---------------- Mutant | -10/Materials Resources | -11 -10 ----------- Run | Yrd Mat Matter Collected 286 | 244 42 Remotely . | . . Salvage Created 254 | 11 243 Parts 19 | 4 15 Haulers Intercepted . | . . Recyclers Shooed . | . . Parts Field Recycled . | . . Retrieved Matter . | . . Parts Self-Destructed . | . . Prevented . | . . Kills | -11 -10 ------- Run | Yrd Mat Combat Hostiles Destroyed 5 | . 5 Guns 4 | . 4 Classes Destroyed 4 | 1 3 Tunneler 1 | 1 . Watcher 3 | . 3 Swarmer 1 | . 1 Grunt 4 | . 4 Best Kill Streak 4 | 1 4 Combat Bots Only 4 | . 4 Max Kills in Single Turn 1 | 1 1 Gunslinging . | . . Exploded . | . . Melee . | . . Uniques/NPCs Destroyed . | . . Combat | -11 -10 -------- Run | Yrd Mat Hostile Shots Fired 58 | . 58 Missed 4 | . 4 Damage Taken 806 | . 806 Core 256 | . 256 Absorbed by Shields . | . . Core Remaining (%) 100 | 100 . Volleys Fired 31 | 4 27 Largest 2 | 2 2 Hottest 100 | 100 100 Shots Fired 61 | 8 53 Gun 61 | 8 53 Cannon . | . . Launcher . | . . Special . | . . Kinetic . | . . Thermal 59 | 8 51 Explosive . | . . Electromagnetic 2 | . 2 Robot Hit Streak 9 | 3 9 Robot Miss Streak 5 | 3 5 Penetration Max . | . . Secondary Targets 2 | . 2 Max Gunslinging Chain 1 | . 1 Shots Hit Robots 34 | 5 29 Core Hits 15 | 2 13 Critical Kills . | . . Critical Parts Destroyed . | . . Critical Strikes 1 | . 1 Burn 1 | . 1 Melee Attacks . | . . Impact . | . . Slashing . | . . Piercing . | . . Sneak Attacks . | . . Combat Hostiles . | . . Follow-up Attacks . | . . Damage Inflicted 426 | 63 363 Guns 423 | 63 360 Cannons . | . . Explosions . | . . Melee . | . . Ramming 3 | . 3 Kinetic . | . . Thermal 411 | 63 348 Explosive . | . . Electromagnetic 12 | . 12 Impact . | . . Slashing . | . . Piercing . | . . Highest Corruption 1 | . 1 Average Corruption 1 | . 1 Corruption Purged . | . . Corruption Blocked . | . . Effects 4 | . 4 Energy Discharges 2 | . 2 Misfires 1 | . 1 Alerts 1 | . 1 Overload Shots . | . . Overflow Damage . | . . Projectiles . | . . Explosions . | . . Melee . | . . Knockbacks . | . . Impact . | . . Kinetic . | . . Secondary . | . . Self-Inflicted Damage . | . . Shots . | . . Rammed . | . . Targets Rammed 1 | . 1 Kicked 1 | . 1 Crushed . | . . Highest Temperature 555 | 156 555 Average Temperature 168 | 80 185 Received Heat Transfer 306 | . 306 Effects 10 | . 10 Shutdowns 2 | . 2 Energy Bleed 1 | . 1 Matter Decay 3 | . 3 Short Circuit 1 | . 1 Damage (minor) 1 | . 1 Damage (core) 2 | . 2 Siege Activations . | . . Robots Corrupted . | . . Combat Hostiles . | . . Parts Fried . | . . Impact Corruptions . | . . Robots Melted 1 | . 1 Combat Hostiles 1 | . 1 Parts Melted 3 | . 3 Heat Transferred 1295 | 185 1110 Parts Sabotaged . | . . Parts Stolen . | . . Parts Stripped . | . . Power Chain Reactions . | . . Alert | -11 -10 ------- Run | Yrd Mat Peak Influence 90 | 5 90 Initial 3 | . 3 Average 23 | . 29 Maximum Alert Level . | . . Low Security (%) 100 | 100 100 Level 1 . | . . Level 2 . | . . Level 3 . | . . Level 4 . | . . Level 5 . | . . High Security . | . . Max Security . | . . Squads Dispatched 1 | . 1 Investigation . | . . Extermination . | . . Reinforcement 1 | . 1 Assault . | . . Garrison . | . . Intercept . | . . Searches Triggered . | . . Construction Impeded . | . . Haulers Reinforced . | . . Active Scanning Responses . | . . Cargo Convoy Interrupts . | . . Stealth | -11 -10 --------- Run | Yrd Mat Distress Signals . | . . Communications Jammed . | . . Distress Signals . | . . Times Spotted 15 | . 15 Peak Tracking Total 4 | . 4 Tactical Retreats . | . . Traps | -11 -10 ------- Run | Yrd Mat Traps Triggered 3 | . 3 Indirectly . | . . Trap Hack Attempts . | . . Triggered . | . . Disarmed . | . . Reprogrammed . | . . Reused . | . . Traps Extracted . | . . Installed . | . . Triggered . | . . Machines | -11 -10 ---------- Run | Yrd Mat Machines Disabled . | . . Max in Single Turn . | . . Machines Repaired . | . . Machines Dismantled . | . . Machines Sabotaged . | . . Overloaded Fab Kills . | . . Hacking | -11 -10 --------- Run | Yrd Mat Machines Accessed . | . . Terminals . | . . Fabricators . | . . Repair Stations . | . . Recycling Units . | . . Scanalyzers . | . . Garrison Access . | . . Total Hacks . | . . Successful . | . . Failed . | . . Catastrophic . | . . Database Lockouts . | . . Manual . | . . Terminals . | . . Fabricators . | . . Repair Stations . | . . Recycling Units . | . . Scanalyzers . | . . Garrison Access . | . . Terminal Hacks . | . . Fabricator Hacks . | . . Repair Station Hacks . | . . Recycling Unit Hacks . | . . Scanalyzer . | . . Garrison Access Hacks . | . . Unauthorized Hacks . | . . Terminals . | . . Fabricators . | . . Repair Stations . | . . Recycling Units . | . . Scanalyzers . | . . Garrison Access . | . . Data Cores Recovered . | . . Used . | . . Hacking Detections . | . . Full Trace Events . | . . Feedback Events . | . . Feedback Blocked . | . . Robot Schematics Acquired . | . . Robots Built . | . . Authchips . | . . Time . | . . Total Robot Build Rating . | . . Part Schematics Acquired . | . . Parts Built . | . . Authchips . | . . Time . | . . Total Part Build Rating . | . . Parts Repaired . | . . Time . | . . Parts Recycled . | . . Recycled Matter . | . . Retrieved Matter . | . . Retrieved Components . | . . Parts Scanalyzed . | . . Part Schematics Acquired . | . . Parts Damaged . | . . Bothacking | -11 -10 ------------ Run | Yrd Mat Used RIF Installer . | . . Robots Hacked . | . . Non-combat . | . . Combat . | . . Robot Hacks Applied . | . . Relay Couplers Released . | . . Fabnet Peak Effective % . | . . Robots Rewired . | . . Allies Hacked . | . . Hacks Repelled . | . . Allies | -11 -10 -------- Run | Yrd Mat Total Allies . | . . Largest Group . | . . Highest-Rated Group . | . . Highest-Rated Ally . | . . Total Orders . | . . Ally Attacks . | . . Total Damage . | . . Kills . | . . Allies Corrupted . | . . Allies Melted . | . . Intel | -11 -10 ------- Run | Yrd Mat Robot Analysis Total . | . . Derelict Logs Recovered . | . . Drone Launches . | . . Drone Recoveries . | . . Exploration | -11 -10 ------------- Run | Yrd Mat Turns Passed 619 | 133 486 Spaces Moved 354 | 79 275 Core 8 | 8 . Treads . | . . Legs 346 | 71 275 Wheels . | . . Hover . | . . Flight . | . . Fastest Speed 50 | 50 120 Average Speed 118 | 112 120 Slowest Speed 120 | 120 120 Overloaded Moves . | . . Propulsion Burnouts . | . . Robots Hopped . | . . Cave-ins Triggered . | . . Exploration Rate (%) 10 | 5 16 Regions Visited 1 Branch Regions . Pre-discovered Areas . | . . Known Exits Taken . | . . Unknown Exits Taken 1 | 1 . Scrap Searched . | . . Spaces Dug . | . . Terrain Destroyed . | . . Melee . | . . Projectile . | . . AOE . | . . Terrain Rammed . | . . Walls Destroyed . | . . Machines Disabled . | . . Actions | -11 -10 --------- Run | Yrd Mat Total 492 | 114 378 Wait 76 | 13 63 Move 353 | 78 275 Hop . | . . Pick Up 16 | 13 3 Fast Attach 3 | 1 2 Attach 8 | 5 3 Detach . | . . Swap 1 | . 1 Drop 3 | . 3 Fire 31 | 4 27 Melee . | . . Ram . | . . Kick 1 | . 1 Crush . | . . Escape Stasis . | . . Rewire . | . . Trap . | . . Miscellaneous . | . . Route ------- -11/Scrapyard -10/Materials History --------- Turn | Location | Event 5 | -11/Scrapyard | Discovered new exit (range 16) 134 | -11/Scrapyard | Entered Materials 311 | -10/Materials | Build established: Mutant 606 | -10/Materials | Core integrity fell below 50% 609 | -10/Materials | Core integrity fell below 20% 620 | -10/Materials | Destroyed by G-47 Trooper with Particle Gun Last Messages --------------- 00601_ Switching to secondary target: S-10 Pest. 00602_ Aluminum Leg broken. 00602_ Overheating: Short circuit. 00606_ Overheating: Core damaged (-35). 00606_ S-10 Pest destroyed. 00607_ Overheating: Core damaged (-50). 00609_ System corrupted: FCS attempts to trigger Med. Laser. 00609_ System corrupted: Med. Laser misfires. 00611_ Overheating: Matter decay (-57). 00612_ Power failure, Ion Engine shutdown. 00612_ Overheating: Matter decay (-42). 00612_ Med. Laser destroyed. 00613_ Overheating: Energy bleed (-5). 00613_ Broken Aluminum Leg destroyed. 00614_ Aluminum Leg destroyed. 00616_ Overheating: EM Pulse Gun damaged (-3). 00616_ EM Pulse Gun destroyed. 00616_ Critical hit (Burn: +37). 00618_ Power failure, Ion Engine shutdown. Map ----- +----------------------------------------------------+ | ???# #?????????????????????????????????????? | | ???# """ #?????????????????????????????????????? | | ???# """ ###########???????????????????????????? | | ???# "" # #???????????????????????????? | | ???# # """"""" #???????????????????????????? | | #######+#### """"""" #???????????????????????????? | | # # """"""" #???????????????????????????? | | # + """"""" #???????????????????????????? | | # # """"""" #???????????????????????????? | | # ###### # #???????????????????????????? | | # ###### # ] #???????????????????????????? | | # #????# ###########???????????????????????????? | | # ######+#?????????????????????????????????????? | | # # #?????????????????????????????????????? | | # # #?????????????????????????????????????? | | # # #?????????????????????????????????????? | | #== + #?????????????????????????????????????? | | # % # #?????????????????????????????????????? | | # # #?????????????????????????????????????? | | # ########??????????????????????????#??????????? | | # #??????????????????????????????? #??????????? | | # #????????????????????????????? #??????????? | | # #??????????????????????????? #??????????? | | # #????????????????????????? #??????????? | | # =#?????????##############! #??????????? | | # ###########% @=%s[ ???????? | | # % ^ !gs ???????? | | ############### ^ % t ???????? | | ??????????????################+########+#????????? | | ?????????????????????????????????????????????????? | | ?????????????????????????????????????????????????? | | ?????????????????????????????????????????????????? | | ?????????????????????????????????????????????????? | | ?????????????????????????????????????????????????? | | ?????????????????????????????????????????????????? | | ?????????????????????????????????????????????????? | | ?????????????????????????????????????????????????? | | ?????????????????????????????????????????????????? | | ?????????????????????????????????????????????????? | | ?????????????????????????????????????????????????? | | ?????????????????????????????????????????????????? | | ?????????????????????????????????????????????????? | | | | | | | | | | | | | | | | | +----------------------------------------------------+ Best States ------------- Heat Dissipation 25 Energy Generation 10 Energy Capacity 250 Matter Stores 300 Matter Capacity 300 Sight Range 16 Terrain Scan Density 10 Evasion (%) 55 Item Schematics ----------------- None Robot Schematics ------------------ None Fabricated ------------ Nothing Alien Tech Used ----------------- None Achievements -------------- None Challenges ------------ None Game ------ Seed WarpTiamatBattery Manual? 0 Play Time 00:14:00 Cumulative 21.6 hours Start 2024.10.15 @ 22:47:24 End 2024.10.24 @ 01:03:02 Sessions 4 Manual Loads 0 Difficulty Rogue Special Mode None Game No. 35 Rogue 35 Adventurer 0 Explorer 0 Win Type - Total 0 Types 0/0/0/0/0/0/0/0/0 Lore% 6 Gallery% 19 Achievement% 16 Wizard Run 0 Options --------- Layout 1 ASCII 0 Keyboard 0 Movement Mouse Keybinds 0 Fullscreen 2 Font 32/SmallcapsGlow Map View 50x35 Zoom Use 30% Tactical HUD 1 Map Filters NONE Filters NONE Steam 1 RUN: 8efc43b4-e983-4f62-937a-bd092ca7f508